fUST/lending_fUST_20250726
["ID","MTS","AMOUNT","RATE_DAILY","PERIOD"]
[374980041,1753487443970,-460.0,0.00022732,2]
[374980043,1753487443979,-216.71317498,0.00022838,2]
[374980045,1753487443989,-460.0,0.00023005,2]
[374980047,1753487443998,-451.1,0.00023279,2]
[374980049,1753487444008,-513.28,0.00023757,2]
[374980051,1753487444020,-243.17987273,0.000239,2]
[374980053,1753487444029,-429.674968,0.00023945,2]
[374980055,1753487444039,-160.108082,0.00023973,2]
[374980057,1753487444048,-150.0,0.00023974,2]
[374980059,1753487444057,-238.88,0.00024,2]
[374980061,1753487444068,-231.28369723,0.0002404,2]
[374980063,1753487444078,-500.0,0.00024139,2]
[374980065,1753487444087,-500.0,0.00024148,2]
[374980068,1753487444097,-153.0,0.00024219,2]
[374980070,1753487444106,-653.3732873,0.00024219,2]
[374980072,1753487444115,-153.0,0.00024219,2]
[374980073,1753487444124,-153.0,0.00024219,2]
[374980075,1753487444134,-153.0,0.00024219,2]
[374980077,1753487444144,-500.0,0.00024224,2]
[374980079,1753487444155,-500.0,0.00024327,2]
[374980081,1753487444170,-191.534907,0.00024401,8]
[374980084,1753487444180,-500.0,0.00024463,2]
[374980085,1753487444189,-500.0,0.00024464,2]
[374980087,1753487444199,-500.0,0.00024522,2]
[374980090,1753487444208,-500.0,0.00024524,2]
[374980092,1753487444220,-500.0,0.00024619,2]
[374980094,1753487444229,-500.0,0.00024622,2]
[374980096,1753487444239,-168.0,0.00024731,2]
[374980098,1753487444248,-167.42666529,0.00024753,2]
[374980100,1753487444257,-306.0,0.00024767,2]
[374980102,1753487444268,-153.733715,0.000248,15]
[374980104,1753487444277,-246.59971328,0.000248,2]
[374980106,1753487444287,-935.19498748,0.000248,2]
[374980108,1753487444296,-1276.91,0.0002483,2]
[374980110,1753487444305,-500.0,0.00024831,2]
[374980112,1753487444314,-500.0,0.00024857,2]
[374980114,1753487444323,-462.0,0.00024857,2]
[374980116,1753487444331,-151.0,0.00024857,2]
[374980118,1753487444339,-168.0,0.00024867,2]
[374980120,1753487444348,-168.0,0.00024871,2]
[374980122,1753487444359,-500.0,0.00024873,2]
[374980124,1753487444367,-500.0,0.00024873,2]
[374980126,1753487444377,-502.478894,0.00024873,2]
[374980128,1753487444387,-635.66965224,0.00024873,2]
[374980130,1753487444396,-500.0,0.00024873,2]
[374980131,1753487444406,-437.92,0.00024878,3]
[374980133,1753487444417,-382.67,0.00024878,10]
[374980135,1753487444427,-153.733715,0.0002488,6]
[374980137,1753487444437,-215.32803575,0.00024887,2]
[374980139,1753487444446,-110990.16342589,0.00024888,2]
[374980908,1753487568042,160.108082,0.00013699,2]
[374980916,1753488532154,-164.89,0.00018623,2]
[374980917,1753488534524,-301.91,0.00018623,2]
[374980919,1753488611672,166.278575,0.00013699,2]
[374980924,1753488632817,-546.4202148,0.00018623,2]
[374980926,1753488632828,-263.35170965,0.000188,2]
[374980929,1753488632840,-263.16415178,0.000188,2]
[374980931,1753488632850,-566.64012855,0.000189,2]
[374980933,1753488632860,-167.57,0.00019199,2]
[374980935,1753488632869,-3870.40163094,0.00019282,2]
[374980937,1753488632885,-915.13713166,0.00019282,2]
[374980939,1753488632895,-1200.0,0.00019442,2]
[374980941,1753488632905,-300.0,0.00019443,2]
[374980943,1753488632914,-284.68169686,0.00019444,2]
[374980948,1753488632948,-215.31830314,0.00019444,2]
[374980951,1753488632958,-500.0,0.00019444,2]
[374980953,1753488632968,-161.15180051,0.00019444,2]
[374981053,1753488638686,-276.65021139,0.00019444,2]
[374981054,1753488638697,-460.0,0.00019445,2]
[374981055,1753488638707,-460.0,0.00019445,2]
[374981056,1753488638717,-460.0,0.00019445,2]
[374981057,1753488638727,-330.08288531,0.00019445,2]
[374981058,1753488638852,-129.91711469,0.00019445,2]
[374981059,1753488638863,-460.0,0.00019445,2]
[374981060,1753488638874,-460.0,0.00019445,2]
[374981061,1753488638884,-557.18,0.00019445,2]
[374981062,1753488638894,-460.0,0.00019445,2]
[374981063,1753488638904,-460.0,0.00019445,2]
[374981064,1753488638915,-460.0,0.00019445,2]
[374981065,1753488638925,-460.0,0.00019445,2]
[374981066,1753488638935,-460.0,0.00019445,2]
[374981067,1753488638945,-460.0,0.00019615,2]
[374981068,1753488638955,-460.0,0.00019615,2]
[374981069,1753488638964,-460.0,0.00019615,2]
[374981070,1753488638974,-460.0,0.00019615,2]
[374981071,1753488638984,-460.0,0.00019615,2]
[374981072,1753488638993,-460.0,0.00019615,2]
[374981073,1753488639003,-460.0,0.00019615,2]
[374981074,1753488639013,-1383.53,0.00019615,2]
[374981075,1753488639023,-460.0,0.00019615,2]
[374981076,1753488639034,-460.0,0.00019713,2]
[374981077,1753488639045,-460.0,0.00019713,2]
[374981078,1753488639055,-460.0,0.00019713,2]
[374981079,1753488639066,-460.0,0.00019714,2]
[374981080,1753488639075,-460.0,0.00019714,2]
[374981081,1753488639086,-3315.82,0.00019714,2]
[374981082,1753488639096,-2047.68,0.00019714,2]
[374981083,1753488639106,-460.0,0.00019714,2]
[374981084,1753488639121,-460.0,0.00019714,2]
[374981085,1753488639135,-460.0,0.00019714,2]
[374981086,1753488639149,-460.0,0.00019714,2]
[374981087,1753488639159,-460.0,0.00019714,2]
[374981088,1753488639168,-2016.92,0.00019714,2]
[374981089,1753488639178,-460.0,0.00019714,2]
[374981090,1753488639190,-460.0,0.00019714,2]
[374981091,1753488639199,-1442.16,0.00019714,2]
[374981092,1753488639209,-460.0,0.00019714,2]
[374981093,1753488639220,-460.0,0.00019714,2]
[374981094,1753488639231,-904.06,0.00019714,2]
[374981095,1753488639240,-460.0,0.00019714,2]
[374981096,1753488639250,-460.0,0.00019714,2]
[374981097,1753488639259,-460.0,0.00019714,2]
[374981098,1753488639269,-460.0,0.00019714,2]
[374981099,1753488639279,-460.0,0.00019714,2]
[374981100,1753488639288,-460.0,0.00019714,2]
[374981101,1753488639298,-460.0,0.00019714,2]
[374981102,1753488639309,-460.0,0.00019715,2]
[374981103,1753488639319,-460.0,0.00019715,2]
[374981104,1753488639329,-460.0,0.00019716,2]
[374981105,1753488639340,-460.0,0.00019716,2]
[374981106,1753488639350,-460.0,0.00019716,2]
[374981107,1753488639360,-460.0,0.00019716,2]
[374981108,1753488639370,-460.0,0.00019716,2]
[374981109,1753488639380,-460.0,0.00019716,2]
[374981110,1753488639389,-460.0,0.00019716,2]
[374981111,1753488639399,-460.0,0.00019716,2]
[374981112,1753488639409,-460.0,0.00019716,2]
[374981113,1753488639419,-302.79337501,0.00019716,2]
[374981114,1753488639428,-357.0252242,0.00019716,2]
[374981115,1753488639438,-460.0,0.00019716,2]
[374981116,1753488639448,-460.0,0.00019716,2]
[374981117,1753488639457,-460.0,0.00019716,2]
[374981118,1753488639467,-460.0,0.00019716,2]
[374981119,1753488639477,-460.0,0.00019716,2]
[374981120,1753488639487,-460.0,0.00019716,2]
[374981121,1753488639497,-500.0,0.00019716,2]
[374981122,1753488639506,-460.0,0.00019716,2]
[374981123,1753488639516,-587.28626161,0.00019716,2]
[374981124,1753488639526,-460.0,0.00019716,2]
[374981125,1753488639536,-460.0,0.00019716,2]
[374981126,1753488639546,-460.0,0.00019716,2]
[374981127,1753488639556,-460.0,0.00019716,2]
[374981128,1753488639566,-460.0,0.00019716,2]
[374981129,1753488639577,-460.0,0.00019716,2]
[374981130,1753488639586,-460.0,0.00019716,2]
[374981131,1753488639596,-460.0,0.00019716,2]
[374981132,1753488639606,-460.0,0.00019716,2]
[374981133,1753488639615,-1000.9,0.00019716,2]
[374981134,1753488639625,-460.0,0.00019716,2]
[374981135,1753488639766,-674.06,0.00019716,2]
[374981136,1753488639777,-460.0,0.00019716,2]
[374981137,1753488639788,-460.0,0.00019716,2]
[374981138,1753488639798,-460.0,0.00019716,2]
[374981139,1753488639808,-460.0,0.00019716,2]
[374981140,1753488639817,-460.0,0.00019716,2]
[374981141,1753488639828,-460.0,0.00019716,2]
[374981142,1753488639841,-460.0,0.00019716,2]
[374981143,1753488639850,-460.0,0.00019716,2]
[374981144,1753488639860,-460.0,0.00019716,2]
[374981145,1753488639869,-460.0,0.00019716,2]
[374981146,1753488639878,-460.0,0.00019716,2]
[374981147,1753488639889,-460.0,0.00019716,2]
[374981148,1753488639900,-460.0,0.00019716,2]
[374981149,1753488639909,-460.0,0.00019716,2]
[374981150,1753488639919,-460.0,0.00019716,2]
[374981151,1753488639930,-3654.8,0.00019716,2]
[374981152,1753488639941,-260.85292071,0.00019716,2]
[374981153,1753488639951,-460.0,0.00019716,2]
[374981154,1753488639961,-460.0,0.00019716,2]
[374981155,1753488639971,-460.0,0.00019716,2]
[374981156,1753488639983,-460.0,0.00019716,2]
[374981157,1753488639993,-460.0,0.00019716,2]
[374981158,1753488640003,-460.0,0.00019716,2]
[374981159,1753488640013,-630.63,0.00019716,2]
[374981160,1753488640023,-460.0,0.00019716,2]
[374981161,1753488640033,-460.0,0.00019716,2]
[374981162,1753488640043,-460.0,0.00019716,2]
[374981163,1753488640053,-500.0,0.00019716,2]
[374981164,1753488640063,-500.0,0.00019716,2]
[374981165,1753488640073,-311.49285654,0.00019716,2]
[374981166,1753488640082,-586.3,0.00019716,2]
[374981167,1753488640092,-460.0,0.00019716,2]
[374981168,1753488640102,-462.88119923,0.00019716,2]
[374981169,1753488640112,-460.0,0.00019716,2]
[374981170,1753488640123,-460.0,0.00019716,2]
[374981171,1753488640132,-460.0,0.00019716,2]
[374981172,1753488640145,-460.0,0.00019716,2]
[374981173,1753488640155,-460.0,0.00019716,2]
[374981174,1753488640165,-460.0,0.00019716,2]
[374981175,1753488640175,-257.94000214,0.00019716,2]
[374981176,1753488640185,-401.829995,0.00019716,2]
[374981177,1753488640196,-200.24926051,0.00019717,2]
[374981178,1753488640206,-370.0,0.00019717,2]
[374981179,1753488640215,-460.0,0.00019717,2]
[374981180,1753488640225,-460.0,0.00019717,2]
[374981182,1753488640235,-460.0,0.00019717,2]
[374981184,1753488640244,-155.44150554,0.00019717,2]
[374981186,1753488640253,-460.0,0.00019717,2]
[374981188,1753488640263,-460.0,0.00019717,2]
[374981190,1753488640272,-460.0,0.00019717,2]
[374981192,1753488640281,-213.99329935,0.00019717,2]
[374981194,1753488640292,-460.0,0.00019717,2]
[374981196,1753488640302,-460.0,0.00019717,2]
[374981198,1753488640311,-460.0,0.00019717,2]
[374981200,1753488640321,-460.0,0.00019717,2]
[374981202,1753488640331,-460.0,0.00019717,2]
[374981204,1753488640341,-460.0,0.00019717,2]
[374981206,1753488640351,-460.0,0.00019717,2]
[374981208,1753488640360,-460.0,0.00019717,2]
[374981210,1753488640371,-460.0,0.00019717,2]
[374981212,1753488640381,-460.0,0.00019717,2]
[374981214,1753488640391,-460.0,0.00019717,2]
[374981216,1753488640400,-460.0,0.00019717,2]
[374981218,1753488640410,-460.0,0.00019717,2]
[374981221,1753488640421,-460.0,0.00019717,2]
[374981223,1753488640430,-460.0,0.00019717,2]
[374981225,1753488640440,-244.40463274,0.00019717,2]
[374981227,1753488640450,-460.0,0.00019717,2]
[374981229,1753488640459,-460.0,0.00019717,2]
[374981231,1753488640469,-460.0,0.00019717,2]
[374981233,1753488640478,-460.0,0.00019717,2]
[374981235,1753488640488,-460.0,0.00019717,2]
[374981237,1753488640498,-460.0,0.00019717,2]
[374981239,1753488640507,-460.0,0.00019717,2]
[374981241,1753488640518,-460.0,0.00019717,2]
[374981243,1753488640527,-460.0,0.00019717,2]
[374981246,1753488640538,-460.0,0.00019717,2]
[374981248,1753488640548,-460.0,0.00019717,2]
[374981250,1753488640558,-460.0,0.00019717,2]
[374981252,1753488640568,-460.0,0.00019717,2]
[374981255,1753488640578,-460.0,0.00019717,2]
[374981257,1753488640587,-460.0,0.00019717,2]
[374981259,1753488640597,-460.0,0.00019717,2]
[374981261,1753488640607,-460.0,0.00019717,2]
[374981264,1753488640616,-460.0,0.00019717,2]
[374981267,1753488640626,-460.0,0.00019717,2]
[374981270,1753488640635,-460.0,0.00019717,2]
[374981273,1753488640645,-460.0,0.00019717,2]
[374981276,1753488640654,-460.0,0.00019717,2]
[374981279,1753488640663,-460.0,0.00019717,2]
[374981282,1753488640674,-460.0,0.00019717,2]
[374981285,1753488640684,-460.0,0.00019717,2]
[374981288,1753488640694,-460.0,0.00019717,2]
[374981291,1753488640703,-460.0,0.00019717,2]
[374981294,1753488640714,-527.338015,0.00019717,2]
[374981297,1753488640723,-460.0,0.00019717,2]
[374981300,1753488640733,-460.0,0.00019717,2]
[374981303,1753488640743,-641.9,0.00019717,2]
[374981306,1753488640753,-460.0,0.00019717,2]
[374981309,1753488640762,-862.63,0.00019717,2]
[374981312,1753488640772,-460.0,0.00019717,2]
[374981314,1753488640781,-460.0,0.00019717,2]
[374981316,1753488640791,-460.0,0.00019717,2]
[374981318,1753488640801,-460.0,0.00019717,2]
[374981320,1753488640811,-460.0,0.00019717,2]
[374981322,1753488640820,-460.0,0.00019717,2]
[374981324,1753488640829,-460.0,0.00019717,2]
[374981326,1753488640840,-460.0,0.00019717,2]
[374981328,1753488640850,-460.0,0.00019717,2]
[374981330,1753488640860,-819.06,0.00019717,2]
[374981332,1753488640871,-460.0,0.00019717,2]
[374981335,1753488640885,-462.93964972,0.00019717,2]
[374981337,1753488640898,-460.0,0.00019717,2]
[374981340,1753488640911,-460.0,0.00019717,2]
[374981341,1753488640925,-460.0,0.00019717,2]
[374981343,1753488640936,-665.9,0.00019717,2]
[374981346,1753488640947,-460.0,0.00019717,2]
[374981348,1753488640961,-460.0,0.00019717,2]
[374981350,1753488640974,-706.17,0.00019717,2]
[374981352,1753488640987,-460.0,0.00019717,2]
[374981355,1753488640999,-406.05746819,0.00019717,2]
[374981357,1753488641012,-500.0,0.00019717,2]
[374981359,1753488641024,-460.0,0.00019717,2]
[374981362,1753488641037,-460.0,0.00019717,2]
[374981364,1753488641050,-460.0,0.00019717,2]
[374981366,1753488641063,-460.0,0.00019718,2]
[374981368,1753488641076,-460.0,0.00019718,2]
[374981370,1753488641088,-460.0,0.00019718,2]
[374981373,1753488641101,-460.0,0.00019718,2]
[374981375,1753488641113,-460.0,0.00019718,2]
[374981377,1753488641125,-460.0,0.00019718,2]
[374981379,1753488641137,-460.0,0.00019718,2]
[374981382,1753488641153,-460.0,0.00019718,2]
[374981384,1753488641166,-460.0,0.00019718,2]
[374981386,1753488641178,-460.0,0.00019718,2]
[374981388,1753488641191,-460.0,0.00019718,2]
[374981390,1753488641202,-460.0,0.00019718,2]
[374981393,1753488641212,-460.0,0.00019718,2]
[374981395,1753488641225,-460.0,0.00019718,2]
[374981397,1753488641236,-460.0,0.00019718,2]
[374981399,1753488641247,-460.0,0.00019718,2]
[374981401,1753488641260,-460.0,0.00019718,2]
[374981404,1753488641272,-460.0,0.00019718,2]
[374981406,1753488641284,-460.0,0.00019718,2]
[374981408,1753488641297,-500.0,0.00019718,2]
[374981411,1753488641310,-460.0,0.00019719,2]
[374981413,1753488641323,-460.0,0.00019719,2]
[374981415,1753488641336,-460.0,0.00019719,2]
[374981418,1753488641350,-460.0,0.00019719,2]
[374981420,1753488641362,-460.0,0.00019719,2]
[374981422,1753488641372,-460.0,0.00019719,2]
[374981424,1753488641383,-460.0,0.00019719,2]
[374981426,1753488641393,-460.0,0.00019719,2]
[374981428,1753488641404,-460.0,0.00019719,2]
[374981430,1753488641416,-460.0,0.00019719,2]
[374981432,1753488641430,-460.0,0.00019719,2]
[374981435,1753488641443,-500.0,0.00019773,2]
[374981437,1753488641454,-500.0,0.00019773,2]
[374981439,1753488641464,-502.09627277,0.00019773,2]
[374981441,1753488641476,-500.0,0.00019773,2]
[374981444,1753488641487,-500.0,0.00019773,2]
[374981446,1753488641499,-500.0,0.00019773,2]
[374981448,1753488641511,-500.0,0.00019773,2]
[374981450,1753488641522,-500.0,0.00019773,2]
[374981452,1753488641533,-500.0,0.00019773,2]
[374981455,1753488641545,-500.0,0.00019773,2]
[374981457,1753488641556,-500.0,0.00019773,2]
[374981459,1753488641567,-500.0,0.00019773,2]
[374981461,1753488641578,-500.0,0.00019773,2]
[374981463,1753488641589,-500.0,0.00019773,2]
[374981465,1753488641600,-500.0,0.00019773,2]
[374981468,1753488641612,-166.95458721,0.00019773,2]
[374981469,1753488641623,-500.0,0.00019773,2]
[374981470,1753488641634,-500.0,0.00019773,2]
[374981471,1753488641646,-497.86177951,0.00019773,2]
[374981472,1753488641659,-500.02678046,0.00019773,2]
[374981473,1753488641671,-500.0,0.00019773,2]
[374981474,1753488641683,-500.0,0.00019773,2]
[374981476,1753488641695,-500.0,0.00019773,2]
[374981478,1753488641707,-460.0,0.00019889,2]
[374981480,1753488641719,-460.0,0.00019889,2]
[374981483,1753488641731,-460.0,0.00019889,2]
[374981484,1753488641742,-460.0,0.00019889,2]
[374981485,1753488641753,-460.0,0.00019889,2]
[374981486,1753488641765,-460.0,0.00019889,2]
[374981487,1753488641776,-460.0,0.00019889,2]
[374981488,1753488641788,-1383.53,0.00019889,2]
[374981489,1753488641799,-460.0,0.00019889,2]
[374981490,1753488641811,-504.22089586,0.00019961,2]
[374981491,1753488641822,-500.0,0.00019972,2]
[374981492,1753488641834,-500.0,0.00019973,2]
[374981493,1753488641846,-500.0,0.00019973,2]
[374981494,1753488641857,-500.55394877,0.00019973,2]
[374981495,1753488641868,-500.0,0.00019973,2]
[374981496,1753488641881,-500.0,0.00019973,2]
[374981497,1753488641893,-209.95428927,0.00019973,2]
[374981499,1753488641906,-500.0,0.00019973,2]
[374981500,1753488641917,-500.0,0.00019973,2]
[374981502,1753488641929,-500.0,0.00019973,2]
[374981503,1753488641940,-500.0,0.00019973,2]
[374981504,1753488641951,-257.98760031,0.00019973,2]
[374981505,1753488641963,-500.0,0.00019973,2]
[374981506,1753488641974,-466.8,0.00019978,3]
[374981507,1753488641985,-460.0,0.00019987,2]
[374981508,1753488641996,-460.0,0.00019987,2]
[374981509,1753488642008,-460.0,0.00019988,2]
[374981510,1753488642018,-460.0,0.00019988,2]
[374981511,1753488642030,-3315.82,0.00019988,2]
[374981512,1753488642043,-2047.68,0.00019988,2]
[374981513,1753488642054,-460.0,0.00019988,2]
[374981514,1753488642065,-460.0,0.00019988,2]
[374981515,1753488642078,-460.0,0.00019988,2]
[374981516,1753488642089,-367.54296886,0.00019988,2]
[374981517,1753488642100,-460.0,0.00019988,2]
[374981518,1753488642112,-2016.92,0.00019988,2]
[374981519,1753488642123,-460.0,0.00019988,2]
[374981520,1753488642134,-460.0,0.00019988,2]
[374981521,1753488642149,-1442.16,0.00019988,2]
[374981522,1753488642291,-460.0,0.00019988,2]
[374981523,1753488642300,-460.0,0.00019988,2]
[374981524,1753488642310,-904.06,0.00019988,2]
[374981525,1753488642319,-460.0,0.00019988,2]
[374981526,1753488642329,-460.0,0.00019988,2]
[374981527,1753488642342,-460.0,0.00019988,2]
[374981528,1753488642353,-460.0,0.00019988,2]
[374981529,1753488642364,-460.0,0.00019988,2]
[374981530,1753488642374,-460.0,0.00019988,2]
[374981531,1753488642386,-354.96858183,0.0001999,2]
[374981532,1753488642396,-369.66091617,0.0001999,2]
[374981533,1753488642406,-298.22907856,0.0001999,2]
[374981534,1753488642416,-460.0,0.0001999,2]
[374981535,1753488642427,-460.0,0.0001999,2]
[374981536,1753488642436,-460.0,0.0001999,2]
[374981537,1753488642447,-460.0,0.0001999,2]
[374981538,1753488642456,-460.0,0.0001999,2]
[374981539,1753488642466,-460.0,0.0001999,2]
[374981540,1753488642477,-291.83764227,0.0001999,2]
[374981541,1753488642486,-460.0,0.0001999,2]
[374981542,1753488642497,-460.0,0.0001999,2]
[374981543,1753488642508,-460.0,0.0001999,2]
[374981544,1753488642519,-460.0,0.0001999,2]
[374981545,1753488642529,-460.40577546,0.0001999,2]
[374981546,1753488642538,-460.0,0.0001999,2]
[374981547,1753488642548,-460.0,0.0001999,2]
[374981548,1753488642558,-460.0,0.0001999,2]
[374981549,1753488642568,-460.0,0.0001999,2]
[374981550,1753488642578,-460.0,0.0001999,2]
[374981551,1753488642588,-460.0,0.0001999,2]
[374981552,1753488642598,-460.0,0.0001999,2]
[374981553,1753488642607,-460.0,0.0001999,2]
[374981554,1753488642617,-1000.9,0.0001999,2]
[374981555,1753488642626,-460.0,0.0001999,2]
[374981556,1753488642636,-674.06,0.0001999,2]
[374981557,1753488642646,-460.0,0.0001999,2]
[374981558,1753488642656,-460.0,0.0001999,2]
[374981559,1753488642667,-460.0,0.0001999,2]
[374981560,1753488642676,-460.0,0.0001999,2]
[374981561,1753488642686,-460.0,0.0001999,2]
[374981562,1753488642696,-460.0,0.0001999,2]
[374981563,1753488642705,-460.0,0.0001999,2]
[374981564,1753488642717,-460.0,0.0001999,2]
[374981565,1753488642727,-460.0,0.0001999,2]
[374981566,1753488642737,-460.0,0.0001999,2]
[374981567,1753488642747,-460.0,0.0001999,2]
[374981568,1753488642758,-460.0,0.0001999,2]
[374981569,1753488642768,-460.0,0.0001999,2]
[374981570,1753488642778,-460.0,0.0001999,2]
[374981571,1753488642788,-3654.8,0.0001999,2]
[374981572,1753488642798,-474.22,0.0001999,2]
[374981573,1753488642808,-460.0,0.0001999,2]
[374981574,1753488642817,-460.0,0.0001999,2]
[374981575,1753488642827,-539.6831129,0.0001999,2]
[374981576,1753488642837,-460.0,0.0001999,2]
[374981577,1753488642847,-630.63,0.0001999,2]
[374981578,1753488642856,-460.0,0.0001999,2]
[374981579,1753488642866,-460.0,0.0001999,2]
[374981580,1753488642875,-460.0,0.0001999,2]
[374981581,1753488642885,-546.64,0.0001999,2]
[374981582,1753488642895,-586.3,0.0001999,2]
[374981583,1753488642904,-500.0,0.0001999,2]
[374981584,1753488642914,-460.0,0.0001999,2]
[374981585,1753488642923,-460.0,0.0001999,2]
[374981586,1753488642933,-460.0,0.0001999,2]
[374981587,1753488642942,-460.0,0.0001999,2]
[374981588,1753488642952,-460.0,0.0001999,2]
[374981589,1753488642961,-460.0,0.0001999,2]
[374981590,1753488642971,-460.0,0.0001999,2]
[374981591,1753488642981,-3739.18736709,0.00019991,2]
[374981592,1753488642990,-460.0,0.00019991,2]
[374981593,1753488642999,-460.0,0.00019991,2]
[374981594,1753488643009,-460.0,0.00019991,2]
[374981595,1753488643019,-460.0,0.00019991,2]
[374981596,1753488643029,-460.0,0.00019991,2]
[374981597,1753488643039,-460.0,0.00019991,2]
[374981598,1753488643049,-517.90358395,0.00019991,2]
[374981599,1753488643059,-460.0,0.00019991,2]
[374981600,1753488643068,-460.0,0.00019991,2]
[374981601,1753488643078,-460.0,0.00019991,2]
[374981602,1753488643088,-460.0,0.00019991,2]
[374981603,1753488643097,-460.0,0.00019991,2]
[374981604,1753488643107,-460.0,0.00019991,2]
[374981605,1753488643116,-460.0,0.00019991,2]
[374981606,1753488643126,-460.0,0.00019991,2]
[374981607,1753488643135,-460.0,0.00019991,2]
[374981608,1753488643147,-460.0,0.00019991,2]
[374981609,1753488643157,-460.0,0.00019991,2]
[374981610,1753488643167,-460.0,0.00019991,2]
[374981611,1753488643176,-460.0,0.00019991,2]
[374981612,1753488643185,-460.0,0.00019991,2]
[374981613,1753488643196,-460.0,0.00019991,2]
[374981614,1753488643207,-460.0,0.00019991,2]
[374981616,1753488643219,-460.0,0.00019991,2]
[374981617,1753488643239,-460.0,0.00019991,2]
[374981618,1753488643253,-460.0,0.00019991,2]
[374981619,1753488643262,-460.0,0.00019991,2]
[374981620,1753488643273,-460.0,0.00019991,2]
[374981621,1753488643283,-460.0,0.00019991,2]
[374981622,1753488643293,-520.0,0.00019991,2]
[374981623,1753488643303,-460.0,0.00019991,2]
[374981624,1753488643314,-460.0,0.00019991,2]
[374981625,1753488643323,-460.0,0.00019991,2]
[374981626,1753488643333,-460.0,0.00019991,2]
[374981627,1753488643343,-460.0,0.00019991,2]
[374981628,1753488643353,-460.0,0.00019991,2]
[374981629,1753488643364,-460.0,0.00019991,2]
[374981630,1753488643375,-460.0,0.00019991,2]
[374981631,1753488643384,-460.0,0.00019991,2]
[374981632,1753488643395,-460.0,0.00019991,2]
[374981633,1753488643409,-460.0,0.00019991,2]
[374981634,1753488643419,-460.0,0.00019991,2]
[374981635,1753488643430,-460.0,0.00019991,2]
[374981636,1753488643441,-641.9,0.00019991,2]
[374981637,1753488643451,-460.0,0.00019991,2]
[374981638,1753488643460,-862.63,0.00019991,2]
[374981639,1753488643470,-460.0,0.00019991,2]
[374981640,1753488643480,-460.0,0.00019991,2]
[374981641,1753488643490,-460.0,0.00019991,2]
[374981642,1753488643499,-460.0,0.00019991,2]
[374981643,1753488643509,-460.0,0.00019991,2]
[374981644,1753488643519,-460.0,0.00019991,2]
[374981645,1753488643528,-460.0,0.00019991,2]
[374981646,1753488643538,-819.06,0.00019991,2]
[374981647,1753488643547,-460.0,0.00019991,2]
[374981648,1753488643557,-460.0,0.00019991,2]
[374981649,1753488643566,-460.0,0.00019991,2]
[374981650,1753488643576,-460.0,0.00019991,2]
[374981651,1753488643586,-460.0,0.00019991,2]
[374981652,1753488643596,-665.9,0.00019991,2]
[374981653,1753488643606,-460.0,0.00019991,2]
[374981654,1753488643616,-706.17,0.00019991,2]